{"text_format":"1","workbook":"xlsx","n_sheets":10,"sheets":["Спецификация","Контрагент","АБС","Поставщик","Цены на инертные","1С списание","Отгрузка","Завод","Списание завод","Приход"],"not_rendered":{"charts":0,"images":2,"macros":1,"external_links":1,"defined_names":4,"comments":0,"pivot_tables":0},"unopened":[],"bounds":{"document_bytes":16777216,"sheet_cells":100000,"rows_first":2000,"rows_last":500,"rows_between":2000,"halvings":0,"cell_chars":16384,"cell_head_chars":4096},"cells_cut":0,"cells_raw":0,"read":"whole","date_system":"1900"}

{"sheet":"Спецификация","index":0,"n_rows":21,"n_cols":9,"rows_kept":21,"cut":false,"hidden":false,"merged":[]}
["Счет","Начало","Окончание","Контрагент","Продукция","Цена","Договор","№ спецификации","Завел (Ответственный)"]
[{"$f":"IF(Спецификация[[#This Row],[Начало]]=\"\",\"\",(SUMPRODUCT(1/COUNTIF($A$1:A1,$A$1:A1))))","v":1},"2018-01-01","2018-03-02","ООО \"Атика\"","БСТ В7,5 П3 F100 W2 (Гравий)",2900]
[{"$f":"IF(Спецификация[[#This Row],[Начало]]=\"\",\"\",(SUMPRODUCT(1/COUNTIF($A$1:A2,$A$1:A2))))","v":2},"2018-03-03","2018-09-05","ООО \"Атика\"","БСТ В7,5 П3 F100 W2 (Гравий)",3200]
[{"$f":"IF(Спецификация[[#This Row],[Начало]]=\"\",\"\",(SUMPRODUCT(1/COUNTIF($A$1:A3,$A$1:A3))))","v":3},"2018-01-01",null,"ООО \"Атика\"","БСТ В12,5 П3 F100 W2 (Гравий)",3000]
[{"$f":"IF(Спецификация[[#This Row],[Начало]]=\"\",\"\",(SUMPRODUCT(1/COUNTIF($A$1:A4,$A$1:A4))))","v":4},"2018-01-01",null,"ООО \"Атика\"","БСТ В12,5 П4 F100 W2 (Гравий)",3000]
[{"$f":"IF(Спецификация[[#This Row],[Начало]]=\"\",\"\",(SUMPRODUCT(1/COUNTIF($A$1:A5,$A$1:A5))))","v":5},"2018-01-01",null,"ООО \"Атика\"","БСТ В15 П3 F150 W6 (Гравий)",3150]
[{"$f":"IF(Спецификация[[#This Row],[Начало]]=\"\",\"\",(SUMPRODUCT(1/COUNTIF($A$1:A6,$A$1:A6))))","v":6},"2018-01-01",null,"ООО \"Атика\"","БСТ В15 П3 F150 W6 (Гравий)",3150]
[{"$f":"IF(Спецификация[[#This Row],[Начало]]=\"\",\"\",(SUMPRODUCT(1/COUNTIF($A$1:A7,$A$1:A7))))","v":7},"2018-01-01",null,"ООО \"Атика\"","БСТ В20 П3 F150 W8 (Гравий)",3300]
[{"$f":"IF(Спецификация[[#This Row],[Начало]]=\"\",\"\",(SUMPRODUCT(1/COUNTIF($A$1:A8,$A$1:A8))))","v":8},"2018-01-01",null,"ООО \"Атика\"","БСТ В20 П4 F150 W8 (Гравий)",3300]
[{"$f":"IF(Спецификация[[#This Row],[Начало]]=\"\",\"\",(SUMPRODUCT(1/COUNTIF($A$1:A9,$A$1:A9))))","v":9},"2018-01-01",null,"ООО \"Атика\"","БСТ В22,5 П3 F200 W8 (Гравий)",3400]
[{"$f":"IF(Спецификация[[#This Row],[Начало]]=\"\",\"\",(SUMPRODUCT(1/COUNTIF($A$1:A10,$A$1:A10))))","v":10},"2018-01-01",null,"ООО \"Атика\"","БСТ В22,5 П4 F200 W8 (Гравий)",3400]
[{"$f":"IF(Спецификация[[#This Row],[Начало]]=\"\",\"\",(SUMPRODUCT(1/COUNTIF($A$1:A11,$A$1:A11))))","v":11},"2018-01-01",null,"ООО \"Атика\"","БСТ В25 П3 F200 W8 (Гравий)",3450]
[{"$f":"IF(Спецификация[[#This Row],[Начало]]=\"\",\"\",(SUMPRODUCT(1/COUNTIF($A$1:A12,$A$1:A12))))","v":12},"2018-01-01",null,"ООО \"Атика\"","БСТ В25 П4 F200 W8 (Гравий)",3450]
[{"$f":"IF(Спецификация[[#This Row],[Начало]]=\"\",\"\",(SUMPRODUCT(1/COUNTIF($A$1:A13,$A$1:A13))))","v":13},"2018-01-01",null,"ООО \"Атика\"","БСТ В25 П3 F300 W10 (Гранит)",3650]
[{"$f":"IF(Спецификация[[#This Row],[Начало]]=\"\",\"\",(SUMPRODUCT(1/COUNTIF($A$1:A14,$A$1:A14))))","v":14},"2018-01-01",null,"ООО \"Атика\"","БСТ В25 П4 F300 W10 (Гранит)",3650]
[{"$f":"IF(Спецификация[[#This Row],[Начало]]=\"\",\"\",(SUMPRODUCT(1/COUNTIF($A$1:A15,$A$1:A15))))","v":""}]
[{"$f":"IF(Спецификация[[#This Row],[Начало]]=\"\",\"\",(SUMPRODUCT(1/COUNTIF($A$1:A16,$A$1:A16))))","v":""}]
[{"$f":"IF(Спецификация[[#This Row],[Начало]]=\"\",\"\",(SUMPRODUCT(1/COUNTIF($A$1:A17,$A$1:A17))))","v":""}]
[{"$f":"IF(Спецификация[[#This Row],[Начало]]=\"\",\"\",(SUMPRODUCT(1/COUNTIF($A$1:A18,$A$1:A18))))","v":""}]
[{"$f":"IF(Спецификация[[#This Row],[Начало]]=\"\",\"\",(SUMPRODUCT(1/COUNTIF($A$1:A19,$A$1:A19))))","v":""}]
[{"$f":"IF(Спецификация[[#This Row],[Начало]]=\"\",\"\",(SUMPRODUCT(1/COUNTIF($A$1:A20,$A$1:A20))))","v":""}]

{"sheet":"Контрагент","index":1,"n_rows":7,"n_cols":5,"rows_kept":7,"cut":false,"hidden":false,"merged":[]}
["Контрагент","Фамилия","Имя","Должность","Мобильный телефон"]
["ООО \"Атика\"","Шевченко","Дмитрий","Ген.Директор"]
["ООО \"БЭСТ БЕТОН\"","Супрун","Станислав","Ген.Директор"]
["ООО \"Комфорт Плюс\"","Супрун","Игорь","Ген.Директор"]
["ООО \"Фтор Мед Царицыно\"","Захаров","Сергей","Ген.Директор"]
["Ч/Л \"Мифтахов\"","Мифтахов","Илья","Частное лицо"]
["Ч/Л \"Рустам\"",null,null,"Частное лицо"]

{"sheet":"АБС","index":2,"n_rows":27,"n_cols":8,"rows_kept":27,"cut":false,"hidden":false,"merged":[]}
["Поставщик","Госномер ТС","Водитель","Телефон","Марка","Объем","Ось","Порожний"]
["И/П \"Торопов\"","н265ко77","Саидов Эргашали","8-925-209-15-36","Камаз",9,"4-х осный",{"$f":"IF(АБС[[#This Row],[Ось]]=\"4-х осный\",8,IF(АБС[[#This Row],[Ось]]=\"\",\"\",7))","v":8}]
["ООО \"Аист\"","н877ке77","Устинов Рустам","8-925-082-29-95","Маз",9,"4-х осный",{"$f":"IF(АБС[[#This Row],[Ось]]=\"4-х осный\",8,IF(АБС[[#This Row],[Ось]]=\"\",\"\",7))","v":8}]
["ООО \"Атика\"","е922тм777","","","Камаз",8,"4-х осный",{"$f":"IF(АБС[[#This Row],[Ось]]=\"4-х осный\",8,IF(АБС[[#This Row],[Ось]]=\"\",\"\",7))","v":8}]
["ООО \"Атика\"","т956ск777","","","Камаз",8,"4-х осный",{"$f":"IF(АБС[[#This Row],[Ось]]=\"4-х осный\",8,IF(АБС[[#This Row],[Ось]]=\"\",\"\",7))","v":8}]
["ООО \"Атика\"","н001тс777","","","Камаз",8,"4-х осный",{"$f":"IF(АБС[[#This Row],[Ось]]=\"4-х осный\",8,IF(АБС[[#This Row],[Ось]]=\"\",\"\",7))","v":8}]
["Ч/Л \"Райнур\"","в580ух199","Каримов Райнур","8-925-255-51-23","Камаз",7,"3-х осный",{"$f":"IF(АБС[[#This Row],[Ось]]=\"4-х осный\",8,IF(АБС[[#This Row],[Ось]]=\"\",\"\",7))","v":7}]
["Спецстрой","к187ус77","Степанян Виталий","8-925-208-60 / 8-999-800-34-05","Ман",6,"3-х осный",{"$f":"IF(АБС[[#This Row],[Ось]]=\"4-х осный\",8,IF(АБС[[#This Row],[Ось]]=\"\",\"\",7))","v":7}]
["Ч/Л \"Максим\"","к553со62","Ярошенко Андрей","8-909-408-44-40","Ивеко",12,"4-х осный",{"$f":"IF(АБС[[#This Row],[Ось]]=\"4-х осный\",8,IF(АБС[[#This Row],[Ось]]=\"\",\"\",7))","v":8}]
["Ч/Л \"Максим\"","о494кн161","Семенов Сергей","8-966-144-67-08","Ман",10,"4-х осный",{"$f":"IF(АБС[[#This Row],[Ось]]=\"4-х осный\",8,IF(АБС[[#This Row],[Ось]]=\"\",\"\",7))","v":8}]
["Ч/Л \"Мифтахов\"","у573мт199","Мифтахов Илья","8-926-547-47-79","Рено",8,"4-х осный",{"$f":"IF(АБС[[#This Row],[Ось]]=\"4-х осный\",8,IF(АБС[[#This Row],[Ось]]=\"\",\"\",7))","v":8}]
["Ч/Л \"Наумчик\"","т564вт64","Наумчик Сергей","8-926-863-72-26","Ман",10,"3-х осный",{"$f":"IF(АБС[[#This Row],[Ось]]=\"4-х осный\",8,IF(АБС[[#This Row],[Ось]]=\"\",\"\",7))","v":7}]
["Ч/Л \"Рустам\"","м954ко10","Глявин Николай","8-961-108-60-31","Вольво",10,"4-х осный",{"$f":"IF(АБС[[#This Row],[Ось]]=\"4-х осный\",8,IF(АБС[[#This Row],[Ось]]=\"\",\"\",7))","v":8}]
["Ч/Л \"Рустам\"","м954ко10","Жданкин Иван","8-926-844-59-19","Вольво",10,"4-х осный",{"$f":"IF(АБС[[#This Row],[Ось]]=\"4-х осный\",8,IF(АБС[[#This Row],[Ось]]=\"\",\"\",7))","v":8}]
["Ч/Л \"Филипов\"","м646ум76","Филипов Григорий","8-936-777-94-55","Ман",11,"4-х осный",{"$f":"IF(АБС[[#This Row],[Ось]]=\"4-х осный\",8,IF(АБС[[#This Row],[Ось]]=\"\",\"\",7))","v":8}]
[null,null,null,null,null,null,null,{"$f":"IF(АБС[[#This Row],[Ось]]=\"4-х осный\",8,IF(АБС[[#This Row],[Ось]]=\"\",\"\",7))","v":""}]
[null,null,null,null,null,null,null,{"$f":"IF(АБС[[#This Row],[Ось]]=\"4-х осный\",8,IF(АБС[[#This Row],[Ось]]=\"\",\"\",7))","v":""}]
[null,null,null,null,null,null,null,{"$f":"IF(АБС[[#This Row],[Ось]]=\"4-х осный\",8,IF(АБС[[#This Row],[Ось]]=\"\",\"\",7))","v":""}]
[null,null,null,null,null,null,null,{"$f":"IF(АБС[[#This Row],[Ось]]=\"4-х осный\",8,IF(АБС[[#This Row],[Ось]]=\"\",\"\",7))","v":""}]
[null,null,null,null,null,null,null,{"$f":"IF(АБС[[#This Row],[Ось]]=\"4-х осный\",8,IF(АБС[[#This Row],[Ось]]=\"\",\"\",7))","v":""}]
[null,null,null,null,null,null,null,{"$f":"IF(АБС[[#This Row],[Ось]]=\"4-х осный\",8,IF(АБС[[#This Row],[Ось]]=\"\",\"\",7))","v":""}]
[null,null,null,null,null,null,null,{"$f":"IF(АБС[[#This Row],[Ось]]=\"4-х осный\",8,IF(АБС[[#This Row],[Ось]]=\"\",\"\",7))","v":""}]
[null,null,null,null,null,null,null,{"$f":"IF(АБС[[#This Row],[Ось]]=\"4-х осный\",8,IF(АБС[[#This Row],[Ось]]=\"\",\"\",7))","v":""}]
[null,null,null,null,null,null,null,{"$f":"IF(АБС[[#This Row],[Ось]]=\"4-х осный\",8,IF(АБС[[#This Row],[Ось]]=\"\",\"\",7))","v":""}]
[null,null,null,null,null,null,null,{"$f":"IF(АБС[[#This Row],[Ось]]=\"4-х осный\",8,IF(АБС[[#This Row],[Ось]]=\"\",\"\",7))","v":""}]
[null,null,null,null,null,null,null,{"$f":"IF(АБС[[#This Row],[Ось]]=\"4-х осный\",8,IF(АБС[[#This Row],[Ось]]=\"\",\"\",7))","v":""}]
[null,null,null,null,null,null,null,{"$f":"IF(АБС[[#This Row],[Ось]]=\"4-х осный\",8,IF(АБС[[#This Row],[Ось]]=\"\",\"\",7))","v":""}]

{"sheet":"Поставщик","index":3,"n_rows":9,"n_cols":3,"rows_kept":9,"cut":false,"hidden":false,"merged":[]}
["Поставщик","Материал","Вид"]
["ООО \"Атика\"","Цемент","Т/С"]
["ООО \"БЭСТ БЕТОН\"","Песок","Ж/Д"]
["ООО \"Комфорт Плюс\"","Гранит"]
["ООО \"Фтор Мед Царицыно\"","Гравий"]
["Ч/Л \"Мифтахов\"","Вторичка"]
["Ч/Л \"Рустам\"","СП-3"]
[null,"Мурапор"]
[null,"Криопласт"]

{"sheet":"Цены на инертные","index":4,"n_rows":4,"n_cols":12,"rows_kept":4,"cut":false,"hidden":false,"merged":[]}
["Начало","Окончание","Цемент","Песок строительный","Песок растворный","Гранит","Гравий","Вторичка","Вода","СП-3","Мурапор","Криопласт"]
["2018-01-01","2018-03-02",5,580,1500,1800,1510,450,35,20.5,67.7,28]
["2018-03-03","2018-09-05",4650,595,1550,1920,1650,470,37,21,70,30]
["2018-09-06","2018-12-20",5000,600,2000,2500,1800,500,45,22,75,32]

{"sheet":"1С списание","index":5,"n_rows":5,"n_cols":24,"rows_kept":5,"cut":false,"hidden":false,"merged":[]}
["Начало","Окончание","Продукция","Цемент","Песок строительный","Песок растворный","Гранит","Гравий","Вторичка","Вода","СП-3","Мурапор","Криопласт","Себестоимость",null,null,null,null,null,null,null,null,null,"Цены на инертные"]
["2018-01-01","2018-03-02","БСТ В7,5 П3 F100 W2 (Гравий)",333,1000,null,null,945,null,180,2.21,null,null,35358.22]
["2018-03-03","2018-03-05","БСТ В7,5 П3 F100 W2 (Гравий)",175,850,null,null,1040,null,175,null,1.8,null,3167.98]
["2018-01-01","2018-03-02","БСТ В7,5 П3 F100 W2 (Гравий)",180,920,null,null,1000,null,135,null,null,2.2999999999999998,20112.55]
["2018-09-06","2018-12-12","БСТ В7,5 П3 F100 W2 (Гравий)",180,920,null,null,1000,null,133,2.21]

{"sheet":"Отгрузка","index":6,"n_rows":21,"n_cols":14,"rows_kept":21,"cut":false,"hidden":false,"merged":[]}
[]
["Дата"]
[]
["Накладная"]
[]
["Контрагент"]
[]
["Госномер ТС"]
[]
["Продукция"]
[]
["Количество"]
[]
["Доставка"]
[]
["Примечание"]
[]
[null,null,null,null,null,{"$f":"SUBTOTAL(9,Отгрузка[Количество])","v":8},{"$f":"SUBTOTAL(9,Отгрузка[Стоимость])","v":6850},{"$f":"SUBTOTAL(9,Отгрузка[Доставка])","v":620},{"$f":"SUBTOTAL(9,Отгрузка[ИТОГО])","v":29950},{"$f":"SUBTOTAL(9,Отгрузка[Порожний прогон])","v":2860},{"$f":"SUBTOTAL(9,Отгрузка[Простой])","v":350},{"$f":"SUBTOTAL(9,Отгрузка[Стоимость ИТОГО])","v":33160}]
["Дата","Накладная","Контрагент","Госномер ТС","Продукция","Количество","Стоимость","Доставка","ИТОГО","Порожний прогон","Простой","Стоимость ИТОГО","Поставщик","Примечание"]
["2018-03-03",null,"ООО \"Атика\"","у573мт199","БСТ В7,5 П3 F100 W2 (Гравий)",3,{"$f":"SUMPRODUCT(Спецификация[Цена]*(Спецификация[Продукция]=Отгрузка[[#This Row],[Продукция]])*(Спецификация[Контрагент]=Отгрузка[[#This Row],[Контрагент]])*(Спецификация[Начало]<=Отгрузка[[#This Row],[Дата]])*((Спецификация[Окончание]=\"\")*99999+Спецификация[Окончание]>=Отгрузка[[#This Row],[Дата]]))","v":3200},500,{"$f":"Отгрузка[[#This Row],[Количество]]*Отгрузка[[#This Row],[Стоимость]]+Отгрузка[[#This Row],[Доставка]]*Отгрузка[[#This Row],[Количество]]","v":11100},{"$f":"IFERROR(MAX(,MIN(VLOOKUP(Отгрузка[[#This Row],[Госномер ТС]],АБС[[Госномер ТС]:[Объем]],5,),7+(LEFTB(VLOOKUP(Отгрузка[[#This Row],[Госномер ТС]],АБС[[Госномер ТС]:[Ось]],6,))=\"4\"))-Отгрузка[[#This Row],[Количество]])*Отгрузка[[#This Row],[Доставка]],)","v":2500},350,{"$f":"Отгрузка[[#This Row],[ИТОГО]]+Отгрузка[[#This Row],[Порожний прогон]]+Отгрузка[[#This Row],[Простой]]","v":13950},{"$f":"IFERROR(IF(INDEX(АБС[Поставщик],MATCH(Отгрузка!$D20,АБС[Госномер ТС],0))=Отгрузка[[#This Row],[Контрагент]],\"Самовывоз\",INDEX(АБС[Поставщик],MATCH(Отгрузка!$D20,АБС[Госномер ТС],0))),\"\")","v":"Ч/Л \"Мифтахов\""}]
["2018-03-07",5,"ООО \"Атика\"","н877ке77","БСТ В25 П4 F300 W10 (Гранит)",5,{"$f":"SUMPRODUCT(Спецификация[Цена]*(Спецификация[Продукция]=Отгрузка[[#This Row],[Продукция]])*(Спецификация[Контрагент]=Отгрузка[[#This Row],[Контрагент]])*(Спецификация[Начало]<=Отгрузка[[#This Row],[Дата]])*((Спецификация[Окончание]=\"\")*99999+Спецификация[Окончание]>=Отгрузка[[#This Row],[Дата]]))","v":3650},120,{"$f":"Отгрузка[[#This Row],[Количество]]*Отгрузка[[#This Row],[Стоимость]]+Отгрузка[[#This Row],[Доставка]]*Отгрузка[[#This Row],[Количество]]","v":18850},{"$f":"IFERROR(MAX(,MIN(VLOOKUP(Отгрузка[[#This Row],[Госномер ТС]],АБС[[Госномер ТС]:[Объем]],5,),7+(LEFTB(VLOOKUP(Отгрузка[[#This Row],[Госномер ТС]],АБС[[Госномер ТС]:[Ось]],6,))=\"4\"))-Отгрузка[[#This Row],[Количество]])*Отгрузка[[#This Row],[Доставка]],)","v":360},null,{"$f":"Отгрузка[[#This Row],[ИТОГО]]+Отгрузка[[#This Row],[Порожний прогон]]+Отгрузка[[#This Row],[Простой]]","v":19210},{"$f":"IFERROR(IF(INDEX(АБС[Поставщик],MATCH(Отгрузка!$D21,АБС[Госномер ТС],0))=Отгрузка[[#This Row],[Контрагент]],\"Самовывоз\",INDEX(АБС[Поставщик],MATCH(Отгрузка!$D21,АБС[Госномер ТС],0))),\"\")","v":"ООО \"Аист\""},"аааа"]

{"sheet":"Завод","index":7,"n_rows":6,"n_cols":39,"rows_kept":6,"cut":false,"hidden":false,"merged":[]}
["Дата","Госномер ТС","Продукция","Количество","Заезд","Выезд","Списание по норме завода","Цемент \"завод\"","Песок строительный \"завод\"","Песок растворный \"завод\"","Гранит \"завод\"","Гравий \"завод\"","Вторичка \"завод\"","Вода \"завод\"","СП-3 \"завод\"","Мурапор \"завод\"","Криопласт \"завод\"","Списание по норме","Цемент","Песок строительный","Песок растворный","Гранит","Гравий","Вторичка","Вода","СП-3","Мурапор","Криопласт","Расхождения","Цемент (расхождение)","Песок строительный (расхождение)","Песок растворный (расхождение)","Гранит (расхождение)","Гравий (расхождение)","Вторичка (расхождение)","Вода (расхождение)","СП-3 (расхождение)","Мурапор (расхождение)","Криопласт (расхождение)"]
["2018-01-01","к187ус77","БСТ В7,5 П3 F100 W2 (Гравий)",3,null,null,null,{"$f":"IFERROR(SUMPRODUCT(Списание_завод[Цемент]*(Списание_завод[Продукция]=SUBSTITUTE(C2,MID(C2,FIND(\"F\",C2),8),))*(Списание_завод[Начало]<=A2)*((Списание_завод[Окончание]=\"\")*99999+Списание_завод[Окончание]>=A2)),)","v":160},{"$f":"IFERROR(SUMPRODUCT(Списание_завод[Песок строительный]*(Списание_завод[Продукция]=SUBSTITUTE(C2,MID(C2,FIND(\"F\",C2),8),))*(Списание_завод[Начало]<=A2)*((Списание_завод[Окончание]=\"\")*99999+Списание_завод[Окончание]>=A2)),)","v":980},{"$f":"IFERROR(SUMPRODUCT(Списание_завод[Песок растворный]*(Списание_завод[Продукция]=SUBSTITUTE(C2,MID(C2,FIND(\"F\",C2),8),))*(Списание_завод[Начало]<=A2)*((Списание_завод[Окончание]=\"\")*99999+Списание_завод[Окончание]>=A2)),)","v":0},{"$f":"IFERROR(SUMPRODUCT(Списание_завод[Гранит]*(Списание_завод[Продукция]=SUBSTITUTE(C2,MID(C2,FIND(\"F\",C2),8),))*(Списание_завод[Начало]<=A2)*((Списание_завод[Окончание]=\"\")*99999+Списание_завод[Окончание]>=A2)),)","v":0},{"$f":"IFERROR(SUMPRODUCT(Списание_завод[Гравий]*(Списание_завод[Продукция]=SUBSTITUTE(C2,MID(C2,FIND(\"F\",C2),8),))*(Списание_завод[Начало]<=A2)*((Списание_завод[Окончание]=\"\")*99999+Списание_завод[Окончание]>=A2)),)","v":935},{"$f":"IFERROR(SUMPRODUCT(Списание_завод[Вторичка]*(Списание_завод[Продукция]=SUBSTITUTE(C2,MID(C2,FIND(\"F\",C2),8),))*(Списание_завод[Начало]<=A2)*((Списание_завод[Окончание]=\"\")*99999+Списание_завод[Окончание]>=A2)),)","v":0},{"$f":"IFERROR(SUMPRODUCT(Списание_завод[Вода]*(Списание_завод[Продукция]=SUBSTITUTE(C2,MID(C2,FIND(\"F\",C2),8),))*(Списание_завод[Начало]<=A2)*((Списание_завод[Окончание]=\"\")*99999+Списание_завод[Окончание]>=A2)),)","v":175},{"$f":"IFERROR(SUMPRODUCT(Списание_завод[СП-3]*(Списание_завод[Продукция]=SUBSTITUTE(C2,MID(C2,FIND(\"F\",C2),8),))*(Списание_завод[Начало]<=A2)*((Списание_завод[Окончание]=\"\")*99999+Списание_завод[Окончание]>=A2)),)","v":2.21},{"$f":"IFERROR(SUMPRODUCT(Списание_завод[Мурапор]*(Списание_завод[Продукция]=SUBSTITUTE(C2,MID(C2,FIND(\"F\",C2),8),))*(Списание_завод[Начало]<=A2)*((Списание_завод[Окончание]=\"\")*99999+Списание_завод[Окончание]>=A2)),)","v":0},{"$f":"IFERROR(SUMPRODUCT(Списание_завод[Криопласт]*(Списание_завод[Продукция]=SUBSTITUTE(C2,MID(C2,FIND(\"F\",C2),8),))*(Списание_завод[Начало]<=A2)*((Списание_завод[Окончание]=\"\")*99999+Списание_завод[Окончание]>=A2)),)","v":0},null,{"$f":"IFERROR(SUMPRODUCT(Списание[Цемент]*(Списание[Продукция]=C2)*(Списание[Начало]<=A2)*((Списание[Окончание]=\"\")*99999+Списание[Окончание]>=A2)),)","v":513},{"$f":"IFERROR(SUMPRODUCT(Списание[Песок строительный]*(Списание[Продукция]=C2)*(Списание[Начало]<=A2)*((Списание[Окончание]=\"\")*99999+Списание[Окончание]>=A2)),)","v":1920},{"$f":"IFERROR(SUMPRODUCT(Списание[Песок растворный]*(Списание[Продукция]=C2)*(Списание[Начало]<=A2)*((Списание[Окончание]=\"\")*99999+Списание[Окончание]>=A2)),)","v":0},{"$f":"IFERROR(SUMPRODUCT(Списание[Гранит]*(Списание[Продукция]=C2)*(Списание[Начало]<=A2)*((Списание[Окончание]=\"\")*99999+Списание[Окончание]>=A2)),)","v":0},{"$f":"IFERROR(SUMPRODUCT(Списание[Гравий]*(Списание[Продукция]=C2)*(Списание[Начало]<=A2)*((Списание[Окончание]=\"\")*99999+Списание[Окончание]>=A2)),)","v":1945},{"$f":"IFERROR(SUMPRODUCT(Списание[Вторичка]*(Списание[Продукция]=C2)*(Списание[Начало]<=A2)*((Списание[Окончание]=\"\")*99999+Списание[Окончание]>=A2)),)","v":0},{"$f":"IFERROR(SUMPRODUCT(Списание[Вода]*(Списание[Продукция]=C2)*(Списание[Начало]<=A2)*((Списание[Окончание]=\"\")*99999+Списание[Окончание]>=A2)),)","v":315},{"$f":"IFERROR(SUMPRODUCT(Списание[СП-3]*(Списание[Продукция]=C2)*(Списание[Начало]<=A2)*((Списание[Окончание]=\"\")*99999+Списание[Окончание]>=A2)),)","v":2.21},{"$f":"IFERROR(SUMPRODUCT(Списание[Мурапор]*(Списание[Продукция]=C2)*(Списание[Начало]<=A2)*((Списание[Окончание]=\"\")*99999+Списание[Окончание]>=A2)),)","v":0},{"$f":"IFERROR(SUMPRODUCT(Списание[Криопласт]*(Списание[Продукция]=C2)*(Списание[Начало]<=A2)*((Списание[Окончание]=\"\")*99999+Списание[Окончание]>=A2)),)","v":2.2999999999999998},null,{"$f":"Завод[[#This Row],[Цемент]]-Завод[[#This Row],[Цемент \"завод\"]]","v":353},{"$f":"Завод[[#This Row],[Песок строительный]]-Завод[[#This Row],[Песок строительный \"завод\"]]","v":940},{"$f":"Завод[[#This Row],[Песок растворный]]-Завод[[#This Row],[Песок растворный \"завод\"]]","v":0},{"$f":"Завод[[#This Row],[Гранит]]-Завод[[#This Row],[Гранит \"завод\"]]","v":0},{"$f":"Завод[[#This Row],[Гравий]]-Завод[[#This Row],[Гравий \"завод\"]]","v":1010},{"$f":"Завод[[#This Row],[Вторичка]]-Завод[[#This Row],[Вторичка \"завод\"]]","v":0},{"$f":"Завод[[#This Row],[Вода]]-Завод[[#This Row],[Вода \"завод\"]]","v":140},{"$f":"Завод[[#This Row],[СП-3]]-Завод[[#This Row],[СП-3 \"завод\"]]","v":0},{"$f":"Завод[[#This Row],[Мурапор]]-Завод[[#This Row],[Мурапор \"завод\"]]","v":0},{"$f":"Завод[[#This Row],[Криопласт]]-Завод[[#This Row],[Криопласт \"завод\"]]","v":2.2999999999999998}]
["2018-03-03","н001тс777","БСТ В7,5 П3 F100 W2 (Гравий)",2,null,null,null,{"$f":"IFERROR(SUMPRODUCT(Списание_завод[Цемент]*(Списание_завод[Продукция]=SUBSTITUTE(C3,MID(C3,FIND(\"F\",C3),8),))*(Списание_завод[Начало]<=A3)*((Списание_завод[Окончание]=\"\")*99999+Списание_завод[Окончание]>=A3)),)","v":150},{"$f":"IFERROR(SUMPRODUCT(Списание_завод[Песок строительный]*(Списание_завод[Продукция]=SUBSTITUTE(C3,MID(C3,FIND(\"F\",C3),8),))*(Списание_завод[Начало]<=A3)*((Списание_завод[Окончание]=\"\")*99999+Списание_завод[Окончание]>=A3)),)","v":970},{"$f":"IFERROR(SUMPRODUCT(Списание_завод[Песок растворный]*(Списание_завод[Продукция]=SUBSTITUTE(C3,MID(C3,FIND(\"F\",C3),8),))*(Списание_завод[Начало]<=A3)*((Списание_завод[Окончание]=\"\")*99999+Списание_завод[Окончание]>=A3)),)","v":0},{"$f":"IFERROR(SUMPRODUCT(Списание_завод[Гранит]*(Списание_завод[Продукция]=SUBSTITUTE(C3,MID(C3,FIND(\"F\",C3),8),))*(Списание_завод[Начало]<=A3)*((Списание_завод[Окончание]=\"\")*99999+Списание_завод[Окончание]>=A3)),)","v":0},{"$f":"IFERROR(SUMPRODUCT(Списание_завод[Гравий]*(Списание_завод[Продукция]=SUBSTITUTE(C3,MID(C3,FIND(\"F\",C3),8),))*(Списание_завод[Начало]<=A3)*((Списание_завод[Окончание]=\"\")*99999+Списание_завод[Окончание]>=A3)),)","v":1000},{"$f":"IFERROR(SUMPRODUCT(Списание_завод[Вторичка]*(Списание_завод[Продукция]=SUBSTITUTE(C3,MID(C3,FIND(\"F\",C3),8),))*(Списание_завод[Начало]<=A3)*((Списание_завод[Окончание]=\"\")*99999+Списание_завод[Окончание]>=A3)),)","v":0},{"$f":"IFERROR(SUMPRODUCT(Списание_завод[Вода]*(Списание_завод[Продукция]=SUBSTITUTE(C3,MID(C3,FIND(\"F\",C3),8),))*(Списание_завод[Начало]<=A3)*((Списание_завод[Окончание]=\"\")*99999+Списание_завод[Окончание]>=A3)),)","v":165},{"$f":"IFERROR(SUMPRODUCT(Списание_завод[СП-3]*(Списание_завод[Продукция]=SUBSTITUTE(C3,MID(C3,FIND(\"F\",C3),8),))*(Списание_завод[Начало]<=A3)*((Списание_завод[Окончание]=\"\")*99999+Списание_завод[Окончание]>=A3)),)","v":0},{"$f":"IFERROR(SUMPRODUCT(Списание_завод[Мурапор]*(Списание_завод[Продукция]=SUBSTITUTE(C3,MID(C3,FIND(\"F\",C3),8),))*(Списание_завод[Начало]<=A3)*((Списание_завод[Окончание]=\"\")*99999+Списание_завод[Окончание]>=A3)),)","v":1.8},{"$f":"IFERROR(SUMPRODUCT(Списание_завод[Криопласт]*(Списание_завод[Продукция]=SUBSTITUTE(C3,MID(C3,FIND(\"F\",C3),8),))*(Списание_завод[Начало]<=A3)*((Списание_завод[Окончание]=\"\")*99999+Списание_завод[Окончание]>=A3)),)","v":0},null,{"$f":"IFERROR(SUMPRODUCT(Списание[Цемент]*(Списание[Продукция]=C3)*(Списание[Начало]<=A3)*((Списание[Окончание]=\"\")*99999+Списание[Окончание]>=A3)),)","v":175},{"$f":"IFERROR(SUMPRODUCT(Списание[Песок строительный]*(Списание[Продукция]=C3)*(Списание[Начало]<=A3)*((Списание[Окончание]=\"\")*99999+Списание[Окончание]>=A3)),)","v":850},{"$f":"IFERROR(SUMPRODUCT(Списание[Песок растворный]*(Списание[Продукция]=C3)*(Списание[Начало]<=A3)*((Списание[Окончание]=\"\")*99999+Списание[Окончание]>=A3)),)","v":0},{"$f":"IFERROR(SUMPRODUCT(Списание[Гранит]*(Списание[Продукция]=C3)*(Списание[Начало]<=A3)*((Списание[Окончание]=\"\")*99999+Списание[Окончание]>=A3)),)","v":0},{"$f":"IFERROR(SUMPRODUCT(Списание[Гравий]*(Списание[Продукция]=C3)*(Списание[Начало]<=A3)*((Списание[Окончание]=\"\")*99999+Списание[Окончание]>=A3)),)","v":1040},{"$f":"IFERROR(SUMPRODUCT(Списание[Вторичка]*(Списание[Продукция]=C3)*(Списание[Начало]<=A3)*((Списание[Окончание]=\"\")*99999+Списание[Окончание]>=A3)),)","v":0},{"$f":"IFERROR(SUMPRODUCT(Списание[Вода]*(Списание[Продукция]=C3)*(Списание[Начало]<=A3)*((Списание[Окончание]=\"\")*99999+Списание[Окончание]>=A3)),)","v":175},{"$f":"IFERROR(SUMPRODUCT(Списание[СП-3]*(Списание[Продукция]=C3)*(Списание[Начало]<=A3)*((Списание[Окончание]=\"\")*99999+Списание[Окончание]>=A3)),)","v":0},{"$f":"IFERROR(SUMPRODUCT(Списание[Мурапор]*(Списание[Продукция]=C3)*(Списание[Начало]<=A3)*((Списание[Окончание]=\"\")*99999+Списание[Окончание]>=A3)),)","v":1.8},{"$f":"IFERROR(SUMPRODUCT(Списание[Криопласт]*(Списание[Продукция]=C3)*(Списание[Начало]<=A3)*((Списание[Окончание]=\"\")*99999+Списание[Окончание]>=A3)),)","v":0},null,{"$f":"Завод[[#This Row],[Цемент]]-Завод[[#This Row],[Цемент \"завод\"]]","v":25},{"$f":"Завод[[#This Row],[Песок строительный]]-Завод[[#This Row],[Песок строительный \"завод\"]]","v":-120},{"$f":"Завод[[#This Row],[Песок растворный]]-Завод[[#This Row],[Песок растворный \"завод\"]]","v":0},{"$f":"Завод[[#This Row],[Гранит]]-Завод[[#This Row],[Гранит \"завод\"]]","v":0},{"$f":"Завод[[#This Row],[Гравий]]-Завод[[#This Row],[Гравий \"завод\"]]","v":40},{"$f":"Завод[[#This Row],[Вторичка]]-Завод[[#This Row],[Вторичка \"завод\"]]","v":0},{"$f":"Завод[[#This Row],[Вода]]-Завод[[#This Row],[Вода \"завод\"]]","v":10},{"$f":"Завод[[#This Row],[СП-3]]-Завод[[#This Row],[СП-3 \"завод\"]]","v":0},{"$f":"Завод[[#This Row],[Мурапор]]-Завод[[#This Row],[Мурапор \"завод\"]]","v":0},{"$f":"Завод[[#This Row],[Криопласт]]-Завод[[#This Row],[Криопласт \"завод\"]]","v":0}]
[null,null,null,null,null,null,null,{"$f":"IFERROR(SUMPRODUCT(Списание_завод[Цемент]*(Списание_завод[Продукция]=SUBSTITUTE(C4,MID(C4,FIND(\"F\",C4),8),))*(Списание_завод[Начало]<=A4)*((Списание_завод[Окончание]=\"\")*99999+Списание_завод[Окончание]>=A4)),)","v":0},{"$f":"IFERROR(SUMPRODUCT(Списание_завод[Песок строительный]*(Списание_завод[Продукция]=SUBSTITUTE(C4,MID(C4,FIND(\"F\",C4),8),))*(Списание_завод[Начало]<=A4)*((Списание_завод[Окончание]=\"\")*99999+Списание_завод[Окончание]>=A4)),)","v":0},{"$f":"IFERROR(SUMPRODUCT(Списание_завод[Песок растворный]*(Списание_завод[Продукция]=SUBSTITUTE(C4,MID(C4,FIND(\"F\",C4),8),))*(Списание_завод[Начало]<=A4)*((Списание_завод[Окончание]=\"\")*99999+Списание_завод[Окончание]>=A4)),)","v":0},{"$f":"IFERROR(SUMPRODUCT(Списание_завод[Гранит]*(Списание_завод[Продукция]=SUBSTITUTE(C4,MID(C4,FIND(\"F\",C4),8),))*(Списание_завод[Начало]<=A4)*((Списание_завод[Окончание]=\"\")*99999+Списание_завод[Окончание]>=A4)),)","v":0},{"$f":"IFERROR(SUMPRODUCT(Списание_завод[Гравий]*(Списание_завод[Продукция]=SUBSTITUTE(C4,MID(C4,FIND(\"F\",C4),8),))*(Списание_завод[Начало]<=A4)*((Списание_завод[Окончание]=\"\")*99999+Списание_завод[Окончание]>=A4)),)","v":0},{"$f":"IFERROR(SUMPRODUCT(Списание_завод[Вторичка]*(Списание_завод[Продукция]=SUBSTITUTE(C4,MID(C4,FIND(\"F\",C4),8),))*(Списание_завод[Начало]<=A4)*((Списание_завод[Окончание]=\"\")*99999+Списание_завод[Окончание]>=A4)),)","v":0},{"$f":"IFERROR(SUMPRODUCT(Списание_завод[Вода]*(Списание_завод[Продукция]=SUBSTITUTE(C4,MID(C4,FIND(\"F\",C4),8),))*(Списание_завод[Начало]<=A4)*((Списание_завод[Окончание]=\"\")*99999+Списание_завод[Окончание]>=A4)),)","v":0},{"$f":"IFERROR(SUMPRODUCT(Списание_завод[СП-3]*(Списание_завод[Продукция]=SUBSTITUTE(C4,MID(C4,FIND(\"F\",C4),8),))*(Списание_завод[Начало]<=A4)*((Списание_завод[Окончание]=\"\")*99999+Списание_завод[Окончание]>=A4)),)","v":0},{"$f":"IFERROR(SUMPRODUCT(Списание_завод[Мурапор]*(Списание_завод[Продукция]=SUBSTITUTE(C4,MID(C4,FIND(\"F\",C4),8),))*(Списание_завод[Начало]<=A4)*((Списание_завод[Окончание]=\"\")*99999+Списание_завод[Окончание]>=A4)),)","v":0},{"$f":"IFERROR(SUMPRODUCT(Списание_завод[Криопласт]*(Списание_завод[Продукция]=SUBSTITUTE(C4,MID(C4,FIND(\"F\",C4),8),))*(Списание_завод[Начало]<=A4)*((Списание_завод[Окончание]=\"\")*99999+Списание_завод[Окончание]>=A4)),)","v":0},null,{"$f":"IFERROR(SUMPRODUCT(Списание[Цемент]*(Списание[Продукция]=C4)*(Списание[Начало]<=A4)*((Списание[Окончание]=\"\")*99999+Списание[Окончание]>=A4)),)","v":0},{"$f":"IFERROR(SUMPRODUCT(Списание[Песок строительный]*(Списание[Продукция]=C4)*(Списание[Начало]<=A4)*((Списание[Окончание]=\"\")*99999+Списание[Окончание]>=A4)),)","v":0},{"$f":"IFERROR(SUMPRODUCT(Списание[Песок растворный]*(Списание[Продукция]=C4)*(Списание[Начало]<=A4)*((Списание[Окончание]=\"\")*99999+Списание[Окончание]>=A4)),)","v":0},{"$f":"IFERROR(SUMPRODUCT(Списание[Гранит]*(Списание[Продукция]=C4)*(Списание[Начало]<=A4)*((Списание[Окончание]=\"\")*99999+Списание[Окончание]>=A4)),)","v":0},{"$f":"IFERROR(SUMPRODUCT(Списание[Гравий]*(Списание[Продукция]=C4)*(Списание[Начало]<=A4)*((Списание[Окончание]=\"\")*99999+Списание[Окончание]>=A4)),)","v":0},{"$f":"IFERROR(SUMPRODUCT(Списание[Вторичка]*(Списание[Продукция]=C4)*(Списание[Начало]<=A4)*((Списание[Окончание]=\"\")*99999+Списание[Окончание]>=A4)),)","v":0},{"$f":"IFERROR(SUMPRODUCT(Списание[Вода]*(Списание[Продукция]=C4)*(Списание[Начало]<=A4)*((Списание[Окончание]=\"\")*99999+Списание[Окончание]>=A4)),)","v":0},{"$f":"IFERROR(SUMPRODUCT(Списание[СП-3]*(Списание[Продукция]=C4)*(Списание[Начало]<=A4)*((Списание[Окончание]=\"\")*99999+Списание[Окончание]>=A4)),)","v":0},{"$f":"IFERROR(SUMPRODUCT(Списание[Мурапор]*(Списание[Продукция]=C4)*(Списание[Начало]<=A4)*((Списание[Окончание]=\"\")*99999+Списание[Окончание]>=A4)),)","v":0},{"$f":"IFERROR(SUMPRODUCT(Списание[Криопласт]*(Списание[Продукция]=C4)*(Списание[Начало]<=A4)*((Списание[Окончание]=\"\")*99999+Списание[Окончание]>=A4)),)","v":0},null,{"$f":"Завод[[#This Row],[Цемент]]-Завод[[#This Row],[Цемент \"завод\"]]","v":0},{"$f":"Завод[[#This Row],[Песок строительный]]-Завод[[#This Row],[Песок строительный \"завод\"]]","v":0},{"$f":"Завод[[#This Row],[Песок растворный]]-Завод[[#This Row],[Песок растворный \"завод\"]]","v":0},{"$f":"Завод[[#This Row],[Гранит]]-Завод[[#This Row],[Гранит \"завод\"]]","v":0},{"$f":"Завод[[#This Row],[Гравий]]-Завод[[#This Row],[Гравий \"завод\"]]","v":0},{"$f":"Завод[[#This Row],[Вторичка]]-Завод[[#This Row],[Вторичка \"завод\"]]","v":0},{"$f":"Завод[[#This Row],[Вода]]-Завод[[#This Row],[Вода \"завод\"]]","v":0},{"$f":"Завод[[#This Row],[СП-3]]-Завод[[#This Row],[СП-3 \"завод\"]]","v":0},{"$f":"Завод[[#This Row],[Мурапор]]-Завод[[#This Row],[Мурапор \"завод\"]]","v":0},{"$f":"Завод[[#This Row],[Криопласт]]-Завод[[#This Row],[Криопласт \"завод\"]]","v":0}]
[null,null,null,null,null,null,null,{"$f":"IFERROR(SUMPRODUCT(Списание_завод[Цемент]*(Списание_завод[Продукция]=SUBSTITUTE(C5,MID(C5,FIND(\"F\",C5),8),))*(Списание_завод[Начало]<=A5)*((Списание_завод[Окончание]=\"\")*99999+Списание_завод[Окончание]>=A5)),)","v":0},{"$f":"IFERROR(SUMPRODUCT(Списание_завод[Песок строительный]*(Списание_завод[Продукция]=SUBSTITUTE(C5,MID(C5,FIND(\"F\",C5),8),))*(Списание_завод[Начало]<=A5)*((Списание_завод[Окончание]=\"\")*99999+Списание_завод[Окончание]>=A5)),)","v":0},{"$f":"IFERROR(SUMPRODUCT(Списание_завод[Песок растворный]*(Списание_завод[Продукция]=SUBSTITUTE(C5,MID(C5,FIND(\"F\",C5),8),))*(Списание_завод[Начало]<=A5)*((Списание_завод[Окончание]=\"\")*99999+Списание_завод[Окончание]>=A5)),)","v":0},{"$f":"IFERROR(SUMPRODUCT(Списание_завод[Гранит]*(Списание_завод[Продукция]=SUBSTITUTE(C5,MID(C5,FIND(\"F\",C5),8),))*(Списание_завод[Начало]<=A5)*((Списание_завод[Окончание]=\"\")*99999+Списание_завод[Окончание]>=A5)),)","v":0},{"$f":"IFERROR(SUMPRODUCT(Списание_завод[Гравий]*(Списание_завод[Продукция]=SUBSTITUTE(C5,MID(C5,FIND(\"F\",C5),8),))*(Списание_завод[Начало]<=A5)*((Списание_завод[Окончание]=\"\")*99999+Списание_завод[Окончание]>=A5)),)","v":0},{"$f":"IFERROR(SUMPRODUCT(Списание_завод[Вторичка]*(Списание_завод[Продукция]=SUBSTITUTE(C5,MID(C5,FIND(\"F\",C5),8),))*(Списание_завод[Начало]<=A5)*((Списание_завод[Окончание]=\"\")*99999+Списание_завод[Окончание]>=A5)),)","v":0},{"$f":"IFERROR(SUMPRODUCT(Списание_завод[Вода]*(Списание_завод[Продукция]=SUBSTITUTE(C5,MID(C5,FIND(\"F\",C5),8),))*(Списание_завод[Начало]<=A5)*((Списание_завод[Окончание]=\"\")*99999+Списание_завод[Окончание]>=A5)),)","v":0},{"$f":"IFERROR(SUMPRODUCT(Списание_завод[СП-3]*(Списание_завод[Продукция]=SUBSTITUTE(C5,MID(C5,FIND(\"F\",C5),8),))*(Списание_завод[Начало]<=A5)*((Списание_завод[Окончание]=\"\")*99999+Списание_завод[Окончание]>=A5)),)","v":0},{"$f":"IFERROR(SUMPRODUCT(Списание_завод[Мурапор]*(Списание_завод[Продукция]=SUBSTITUTE(C5,MID(C5,FIND(\"F\",C5),8),))*(Списание_завод[Начало]<=A5)*((Списание_завод[Окончание]=\"\")*99999+Списание_завод[Окончание]>=A5)),)","v":0},{"$f":"IFERROR(SUMPRODUCT(Списание_завод[Криопласт]*(Списание_завод[Продукция]=SUBSTITUTE(C5,MID(C5,FIND(\"F\",C5),8),))*(Списание_завод[Начало]<=A5)*((Списание_завод[Окончание]=\"\")*99999+Списание_завод[Окончание]>=A5)),)","v":0},null,{"$f":"IFERROR(SUMPRODUCT(Списание[Цемент]*(Списание[Продукция]=C5)*(Списание[Начало]<=A5)*((Списание[Окончание]=\"\")*99999+Списание[Окончание]>=A5)),)","v":0},{"$f":"IFERROR(SUMPRODUCT(Списание[Песок строительный]*(Списание[Продукция]=C5)*(Списание[Начало]<=A5)*((Списание[Окончание]=\"\")*99999+Списание[Окончание]>=A5)),)","v":0},{"$f":"IFERROR(SUMPRODUCT(Списание[Песок растворный]*(Списание[Продукция]=C5)*(Списание[Начало]<=A5)*((Списание[Окончание]=\"\")*99999+Списание[Окончание]>=A5)),)","v":0},{"$f":"IFERROR(SUMPRODUCT(Списание[Гранит]*(Списание[Продукция]=C5)*(Списание[Начало]<=A5)*((Списание[Окончание]=\"\")*99999+Списание[Окончание]>=A5)),)","v":0},{"$f":"IFERROR(SUMPRODUCT(Списание[Гравий]*(Списание[Продукция]=C5)*(Списание[Начало]<=A5)*((Списание[Окончание]=\"\")*99999+Списание[Окончание]>=A5)),)","v":0},{"$f":"IFERROR(SUMPRODUCT(Списание[Вторичка]*(Списание[Продукция]=C5)*(Списание[Начало]<=A5)*((Списание[Окончание]=\"\")*99999+Списание[Окончание]>=A5)),)","v":0},{"$f":"IFERROR(SUMPRODUCT(Списание[Вода]*(Списание[Продукция]=C5)*(Списание[Начало]<=A5)*((Списание[Окончание]=\"\")*99999+Списание[Окончание]>=A5)),)","v":0},{"$f":"IFERROR(SUMPRODUCT(Списание[СП-3]*(Списание[Продукция]=C5)*(Списание[Начало]<=A5)*((Списание[Окончание]=\"\")*99999+Списание[Окончание]>=A5)),)","v":0},{"$f":"IFERROR(SUMPRODUCT(Списание[Мурапор]*(Списание[Продукция]=C5)*(Списание[Начало]<=A5)*((Списание[Окончание]=\"\")*99999+Списание[Окончание]>=A5)),)","v":0},{"$f":"IFERROR(SUMPRODUCT(Списание[Криопласт]*(Списание[Продукция]=C5)*(Списание[Начало]<=A5)*((Списание[Окончание]=\"\")*99999+Списание[Окончание]>=A5)),)","v":0},null,{"$f":"Завод[[#This Row],[Цемент]]-Завод[[#This Row],[Цемент \"завод\"]]","v":0},{"$f":"Завод[[#This Row],[Песок строительный]]-Завод[[#This Row],[Песок строительный \"завод\"]]","v":0},{"$f":"Завод[[#This Row],[Песок растворный]]-Завод[[#This Row],[Песок растворный \"завод\"]]","v":0},{"$f":"Завод[[#This Row],[Гранит]]-Завод[[#This Row],[Гранит \"завод\"]]","v":0},{"$f":"Завод[[#This Row],[Гравий]]-Завод[[#This Row],[Гравий \"завод\"]]","v":0},{"$f":"Завод[[#This Row],[Вторичка]]-Завод[[#This Row],[Вторичка \"завод\"]]","v":0},{"$f":"Завод[[#This Row],[Вода]]-Завод[[#This Row],[Вода \"завод\"]]","v":0},{"$f":"Завод[[#This Row],[СП-3]]-Завод[[#This Row],[СП-3 \"завод\"]]","v":0},{"$f":"Завод[[#This Row],[Мурапор]]-Завод[[#This Row],[Мурапор \"завод\"]]","v":0},{"$f":"Завод[[#This Row],[Криопласт]]-Завод[[#This Row],[Криопласт \"завод\"]]","v":0}]
[null,null,null,null,null,null,null,{"$f":"IFERROR(SUMPRODUCT(Списание_завод[Цемент]*(Списание_завод[Продукция]=SUBSTITUTE(C6,MID(C6,FIND(\"F\",C6),8),))*(Списание_завод[Начало]<=A6)*((Списание_завод[Окончание]=\"\")*99999+Списание_завод[Окончание]>=A6)),)","v":0},{"$f":"IFERROR(SUMPRODUCT(Списание_завод[Песок строительный]*(Списание_завод[Продукция]=SUBSTITUTE(C6,MID(C6,FIND(\"F\",C6),8),))*(Списание_завод[Начало]<=A6)*((Списание_завод[Окончание]=\"\")*99999+Списание_завод[Окончание]>=A6)),)","v":0},{"$f":"IFERROR(SUMPRODUCT(Списание_завод[Песок растворный]*(Списание_завод[Продукция]=SUBSTITUTE(C6,MID(C6,FIND(\"F\",C6),8),))*(Списание_завод[Начало]<=A6)*((Списание_завод[Окончание]=\"\")*99999+Списание_завод[Окончание]>=A6)),)","v":0},{"$f":"IFERROR(SUMPRODUCT(Списание_завод[Гранит]*(Списание_завод[Продукция]=SUBSTITUTE(C6,MID(C6,FIND(\"F\",C6),8),))*(Списание_завод[Начало]<=A6)*((Списание_завод[Окончание]=\"\")*99999+Списание_завод[Окончание]>=A6)),)","v":0},{"$f":"IFERROR(SUMPRODUCT(Списание_завод[Гравий]*(Списание_завод[Продукция]=SUBSTITUTE(C6,MID(C6,FIND(\"F\",C6),8),))*(Списание_завод[Начало]<=A6)*((Списание_завод[Окончание]=\"\")*99999+Списание_завод[Окончание]>=A6)),)","v":0},{"$f":"IFERROR(SUMPRODUCT(Списание_завод[Вторичка]*(Списание_завод[Продукция]=SUBSTITUTE(C6,MID(C6,FIND(\"F\",C6),8),))*(Списание_завод[Начало]<=A6)*((Списание_завод[Окончание]=\"\")*99999+Списание_завод[Окончание]>=A6)),)","v":0},{"$f":"IFERROR(SUMPRODUCT(Списание_завод[Вода]*(Списание_завод[Продукция]=SUBSTITUTE(C6,MID(C6,FIND(\"F\",C6),8),))*(Списание_завод[Начало]<=A6)*((Списание_завод[Окончание]=\"\")*99999+Списание_завод[Окончание]>=A6)),)","v":0},{"$f":"IFERROR(SUMPRODUCT(Списание_завод[СП-3]*(Списание_завод[Продукция]=SUBSTITUTE(C6,MID(C6,FIND(\"F\",C6),8),))*(Списание_завод[Начало]<=A6)*((Списание_завод[Окончание]=\"\")*99999+Списание_завод[Окончание]>=A6)),)","v":0},{"$f":"IFERROR(SUMPRODUCT(Списание_завод[Мурапор]*(Списание_завод[Продукция]=SUBSTITUTE(C6,MID(C6,FIND(\"F\",C6),8),))*(Списание_завод[Начало]<=A6)*((Списание_завод[Окончание]=\"\")*99999+Списание_завод[Окончание]>=A6)),)","v":0},{"$f":"IFERROR(SUMPRODUCT(Списание_завод[Криопласт]*(Списание_завод[Продукция]=SUBSTITUTE(C6,MID(C6,FIND(\"F\",C6),8),))*(Списание_завод[Начало]<=A6)*((Списание_завод[Окончание]=\"\")*99999+Списание_завод[Окончание]>=A6)),)","v":0},null,{"$f":"IFERROR(SUMPRODUCT(Списание[Цемент]*(Списание[Продукция]=C6)*(Списание[Начало]<=A6)*((Списание[Окончание]=\"\")*99999+Списание[Окончание]>=A6)),)","v":0},{"$f":"IFERROR(SUMPRODUCT(Списание[Песок строительный]*(Списание[Продукция]=C6)*(Списание[Начало]<=A6)*((Списание[Окончание]=\"\")*99999+Списание[Окончание]>=A6)),)","v":0},{"$f":"IFERROR(SUMPRODUCT(Списание[Песок растворный]*(Списание[Продукция]=C6)*(Списание[Начало]<=A6)*((Списание[Окончание]=\"\")*99999+Списание[Окончание]>=A6)),)","v":0},{"$f":"IFERROR(SUMPRODUCT(Списание[Гранит]*(Списание[Продукция]=C6)*(Списание[Начало]<=A6)*((Списание[Окончание]=\"\")*99999+Списание[Окончание]>=A6)),)","v":0},{"$f":"IFERROR(SUMPRODUCT(Списание[Гравий]*(Списание[Продукция]=C6)*(Списание[Начало]<=A6)*((Списание[Окончание]=\"\")*99999+Списание[Окончание]>=A6)),)","v":0},{"$f":"IFERROR(SUMPRODUCT(Списание[Вторичка]*(Списание[Продукция]=C6)*(Списание[Начало]<=A6)*((Списание[Окончание]=\"\")*99999+Списание[Окончание]>=A6)),)","v":0},{"$f":"IFERROR(SUMPRODUCT(Списание[Вода]*(Списание[Продукция]=C6)*(Списание[Начало]<=A6)*((Списание[Окончание]=\"\")*99999+Списание[Окончание]>=A6)),)","v":0},{"$f":"IFERROR(SUMPRODUCT(Списание[СП-3]*(Списание[Продукция]=C6)*(Списание[Начало]<=A6)*((Списание[Окончание]=\"\")*99999+Списание[Окончание]>=A6)),)","v":0},{"$f":"IFERROR(SUMPRODUCT(Списание[Мурапор]*(Списание[Продукция]=C6)*(Списание[Начало]<=A6)*((Списание[Окончание]=\"\")*99999+Списание[Окончание]>=A6)),)","v":0},{"$f":"IFERROR(SUMPRODUCT(Списание[Криопласт]*(Списание[Продукция]=C6)*(Списание[Начало]<=A6)*((Списание[Окончание]=\"\")*99999+Списание[Окончание]>=A6)),)","v":0},null,{"$f":"Завод[[#This Row],[Цемент]]-Завод[[#This Row],[Цемент \"завод\"]]","v":0},{"$f":"Завод[[#This Row],[Песок строительный]]-Завод[[#This Row],[Песок строительный \"завод\"]]","v":0},{"$f":"Завод[[#This Row],[Песок растворный]]-Завод[[#This Row],[Песок растворный \"завод\"]]","v":0},{"$f":"Завод[[#This Row],[Гранит]]-Завод[[#This Row],[Гранит \"завод\"]]","v":0},{"$f":"Завод[[#This Row],[Гравий]]-Завод[[#This Row],[Гравий \"завод\"]]","v":0},{"$f":"Завод[[#This Row],[Вторичка]]-Завод[[#This Row],[Вторичка \"завод\"]]","v":0},{"$f":"Завод[[#This Row],[Вода]]-Завод[[#This Row],[Вода \"завод\"]]","v":0},{"$f":"Завод[[#This Row],[СП-3]]-Завод[[#This Row],[СП-3 \"завод\"]]","v":0},{"$f":"Завод[[#This Row],[Мурапор]]-Завод[[#This Row],[Мурапор \"завод\"]]","v":0},{"$f":"Завод[[#This Row],[Криопласт]]-Завод[[#This Row],[Криопласт \"завод\"]]","v":0}]

{"sheet":"Списание завод","index":8,"n_rows":5,"n_cols":25,"rows_kept":5,"cut":false,"hidden":false,"merged":[]}
["Начало","Окончание","Продукция","Цемент","Песок строительный","Песок растворный","Гранит","Гравий","Вторичка","Вода","СП-3","Мурапор","Криопласт","Себестоимость",null,null,null,null,null,null,null,null,null,null,"Цены на инертные"]
["2018-01-01","2018-03-02","БСТ В7,5 П3 (Гравий)",160,980,null,null,935,null,175,2.21,null,null,{"$f":"IFERROR(SUMPRODUCT(INDEX(Цены_инертные[[Цемент]:[Криопласт]],SUMPRODUCT(ROW(Цены_инертные[Начало])*(Цены_инертные[Начало]>0)*(Цены_инертные[Начало]<=Списание_завод[[#This Row],[Начало]])*((Цены_инертные[Окончание]=\"\")*99999+Цены_инертные[Окончание]>=Списание_завод[[#This Row],[Окончание]]))-1,)*Списание_завод[[#This Row],[Цемент]:[Криопласт]]/1000^(COLUMN(Списание_завод[[#This Row],[Цемент]:[Криопласт]])<COLUMN(Списание_завод[[#This Row],[СП-3]]))),)","v":2032.4799999999998}]
["2018-03-03","2018-03-05","БСТ В7,5 П3 (Гравий)",150,970,null,null,1000,null,165,null,1.8,null,{"$f":"IFERROR(SUMPRODUCT(INDEX(Цены_инертные[[Цемент]:[Криопласт]],SUMPRODUCT(ROW(Цены_инертные[Начало])*(Цены_инертные[Начало]>0)*(Цены_инертные[Начало]<=Списание_завод[[#This Row],[Начало]])*((Цены_инертные[Окончание]=\"\")*99999+Цены_инертные[Окончание]>=Списание_завод[[#This Row],[Окончание]]))-1,)*Списание_завод[[#This Row],[Цемент]:[Криопласт]]/1000^(COLUMN(Списание_завод[[#This Row],[Цемент]:[Криопласт]])<COLUMN(Списание_завод[[#This Row],[СП-3]]))),)","v":3056.7550000000001}]
[null,null,null,140,null,null,null,null,null,null,null,null,null,{"$f":"IFERROR(SUMPRODUCT(INDEX(Цены_инертные[[Цемент]:[Криопласт]],SUMPRODUCT(ROW(Цены_инертные[Начало])*(Цены_инертные[Начало]>0)*(Цены_инертные[Начало]<=Списание_завод[[#This Row],[Начало]])*((Цены_инертные[Окончание]=\"\")*99999+Цены_инертные[Окончание]>=Списание_завод[[#This Row],[Окончание]]))-1,)*Списание_завод[[#This Row],[Цемент]:[Криопласт]]/1000^(COLUMN(Списание_завод[[#This Row],[Цемент]:[Криопласт]])<COLUMN(Списание_завод[[#This Row],[СП-3]]))),)","v":0}]
[null,null,null,null,null,null,null,null,null,null,null,null,null,{"$f":"IFERROR(SUMPRODUCT(INDEX(Цены_инертные[[Цемент]:[Криопласт]],SUMPRODUCT(ROW(Цены_инертные[Начало])*(Цены_инертные[Начало]>0)*(Цены_инертные[Начало]<=Списание_завод[[#This Row],[Начало]])*((Цены_инертные[Окончание]=\"\")*99999+Цены_инертные[Окончание]>=Списание_завод[[#This Row],[Окончание]]))-1,)*Списание_завод[[#This Row],[Цемент]:[Криопласт]]/1000^(COLUMN(Списание_завод[[#This Row],[Цемент]:[Криопласт]])<COLUMN(Списание_завод[[#This Row],[СП-3]]))),)","v":0}]

{"sheet":"Приход","index":9,"n_rows":24,"n_cols":11,"rows_kept":24,"cut":false,"hidden":false,"merged":[]}
[]
[]
[]
[]
[]
[]
[]
[null,null,null,null,null,null,null,null,null,null,{"$f":"SUBTOTAL(9,Приход[Нетто для бухгалтерии])","v":0}]
["Дата","Поставщик","Материал","Вид поставки","№ ТС/Вагона","№ Накладной","Брутто, (т)","Тара, (т)","Нетто, (т)","Нетто по накладным, (т)","Нетто для бухгалтерии"]
["2018-10-21","ООО \"Атика\"","Цемент","Т/С",null,null,null,null,{"$f":"Приход[[#This Row],[Брутто, (т)]]-Приход[[#This Row],[Тара, (т)]]","v":0},null,{"$f":"SMALL(Приход[[#This Row],[Нетто, (т)]:[Нетто по накладным, (т)]],1)","v":0}]
[null,null,"Криопласт",null,null,null,null,null,{"$f":"Приход[[#This Row],[Брутто, (т)]]-Приход[[#This Row],[Тара, (т)]]","v":0},null,{"$f":"SMALL(Приход[[#This Row],[Нетто, (т)]:[Нетто по накладным, (т)]],1)","v":0}]
[null,null,null,null,null,null,null,null,{"$f":"Приход[[#This Row],[Брутто, (т)]]-Приход[[#This Row],[Тара, (т)]]","v":0},null,{"$f":"SMALL(Приход[[#This Row],[Нетто, (т)]:[Нетто по накладным, (т)]],1)","v":0}]
[null,null,null,null,null,null,null,null,{"$f":"Приход[[#This Row],[Брутто, (т)]]-Приход[[#This Row],[Тара, (т)]]","v":0},null,{"$f":"SMALL(Приход[[#This Row],[Нетто, (т)]:[Нетто по накладным, (т)]],1)","v":0}]
[null,null,null,null,null,null,null,null,{"$f":"Приход[[#This Row],[Брутто, (т)]]-Приход[[#This Row],[Тара, (т)]]","v":0},null,{"$f":"SMALL(Приход[[#This Row],[Нетто, (т)]:[Нетто по накладным, (т)]],1)","v":0}]
[null,null,null,null,null,null,null,null,{"$f":"Приход[[#This Row],[Брутто, (т)]]-Приход[[#This Row],[Тара, (т)]]","v":0},null,{"$f":"SMALL(Приход[[#This Row],[Нетто, (т)]:[Нетто по накладным, (т)]],1)","v":0}]
[null,null,null,null,null,null,null,null,{"$f":"Приход[[#This Row],[Брутто, (т)]]-Приход[[#This Row],[Тара, (т)]]","v":0},null,{"$f":"SMALL(Приход[[#This Row],[Нетто, (т)]:[Нетто по накладным, (т)]],1)","v":0}]
[null,null,null,null,null,null,null,null,{"$f":"Приход[[#This Row],[Брутто, (т)]]-Приход[[#This Row],[Тара, (т)]]","v":0},null,{"$f":"SMALL(Приход[[#This Row],[Нетто, (т)]:[Нетто по накладным, (т)]],1)","v":0}]
[null,null,null,null,null,null,null,null,{"$f":"Приход[[#This Row],[Брутто, (т)]]-Приход[[#This Row],[Тара, (т)]]","v":0},null,{"$f":"SMALL(Приход[[#This Row],[Нетто, (т)]:[Нетто по накладным, (т)]],1)","v":0}]
[null,null,null,null,null,null,null,null,{"$f":"Приход[[#This Row],[Брутто, (т)]]-Приход[[#This Row],[Тара, (т)]]","v":0},null,{"$f":"SMALL(Приход[[#This Row],[Нетто, (т)]:[Нетто по накладным, (т)]],1)","v":0}]
[null,null,null,null,null,null,null,null,{"$f":"Приход[[#This Row],[Брутто, (т)]]-Приход[[#This Row],[Тара, (т)]]","v":0},null,{"$f":"SMALL(Приход[[#This Row],[Нетто, (т)]:[Нетто по накладным, (т)]],1)","v":0}]
[null,null,null,null,null,null,null,null,{"$f":"Приход[[#This Row],[Брутто, (т)]]-Приход[[#This Row],[Тара, (т)]]","v":0},null,{"$f":"SMALL(Приход[[#This Row],[Нетто, (т)]:[Нетто по накладным, (т)]],1)","v":0}]
[null,null,null,null,null,null,null,null,{"$f":"Приход[[#This Row],[Брутто, (т)]]-Приход[[#This Row],[Тара, (т)]]","v":0},null,{"$f":"SMALL(Приход[[#This Row],[Нетто, (т)]:[Нетто по накладным, (т)]],1)","v":0}]
[null,null,null,null,null,null,null,null,{"$f":"Приход[[#This Row],[Брутто, (т)]]-Приход[[#This Row],[Тара, (т)]]","v":0},null,{"$f":"SMALL(Приход[[#This Row],[Нетто, (т)]:[Нетто по накладным, (т)]],1)","v":0}]
[null,null,null,null,null,null,null,null,{"$f":"Приход[[#This Row],[Брутто, (т)]]-Приход[[#This Row],[Тара, (т)]]","v":0},null,{"$f":"SMALL(Приход[[#This Row],[Нетто, (т)]:[Нетто по накладным, (т)]],1)","v":0}]